fUST/lending_fUST_20250726
["ID","MTS","AMOUNT","RATE_DAILY","PERIOD"]
[375048025,1753511448329,-250.426663,0.00019452,2]
[375048028,1753511448338,-460.0,0.00019452,2]
[375048029,1753511448348,-460.0,0.00019452,2]
[375048032,1753511448358,-842.14,0.00019452,2]
[375048033,1753511448368,-460.0,0.00019452,2]
[375048035,1753511448378,-460.0,0.00019452,2]
[375048038,1753511448388,-1185.09,0.00019452,2]
[375048039,1753511448399,-3896.75,0.00019452,2]
[375048041,1753511448409,-460.0,0.00019452,2]
[375048043,1753511448419,-460.0,0.00019452,2]
[375048045,1753511448429,-1163.22,0.00019452,2]
[375048048,1753511448440,-460.0,0.00019452,2]
[375048049,1753511448450,-460.0,0.00019452,2]
[375048052,1753511448460,-460.0,0.00019452,2]
[375048054,1753511448470,-460.0,0.00019452,2]
[375048055,1753511448479,-584.0778264,0.00019452,2]
[375048058,1753511448489,-460.0,0.00019452,2]
[375048059,1753511448499,-458.5192034,0.00019452,2]
[375048062,1753511448508,-465.30515587,0.00019452,2]
[375048063,1753511448518,-2522.98,0.00019452,2]
[375048066,1753511448528,-460.0,0.00019452,2]
[375048068,1753511448537,-3435.02,0.00019452,2]
[375048070,1753511448547,-867.81,0.00019452,2]
[375048072,1753511448556,-527.64,0.00019452,2]
[375048074,1753511448565,-460.0,0.00019452,2]
[375048076,1753511448574,-460.0,0.00019452,2]
[375048078,1753511448584,-460.0,0.00019452,2]
[375048080,1753511448593,-11805.46,0.00019452,2]
[375048082,1753511448603,-551.28152601,0.00019452,2]
[375048084,1753511448612,-460.0,0.00019452,2]
[375048086,1753511448621,-460.0,0.00019452,2]
[375048088,1753511448631,-463.15055095,0.00019452,2]
[375048090,1753511448640,-3583.05,0.00019452,2]
[375048091,1753511448650,-460.0,0.00019452,2]
[375048093,1753511448660,-460.0,0.00019452,2]
[375048096,1753511448669,-465.17308828,0.00019452,2]
[375048097,1753511448679,-151.0,0.00019452,2]
[375048100,1753511448693,-460.0,0.00019452,2]
[375048102,1753511448705,-151.0,0.00019452,2]
[375048104,1753511448715,-766.82,0.00019452,2]
[375048106,1753511448725,-460.0,0.00019452,2]
[375048108,1753511448735,-151.0,0.00019452,2]
[375048110,1753511448745,-151.0,0.00019452,2]
[375048112,1753511448755,-460.0,0.00019452,2]
[375048114,1753511448765,-460.0,0.00019452,2]
[375048116,1753511448775,-1264.18,0.00019452,2]
[375048118,1753511448784,-162.378101,0.00019452,2]
[375048120,1753511448794,-162.378101,0.00019452,2]
[375048122,1753511448803,-460.0,0.00019452,2]
[375048124,1753511448815,-162.378101,0.00019452,2]
[375048126,1753511448824,-460.0,0.00019452,2]
[375048128,1753511448834,-162.378101,0.00019452,2]
[375048130,1753511448843,-162.378101,0.00019452,2]
[375048132,1753511448852,-162.378101,0.00019452,2]
[375048134,1753511448862,-1716.22,0.00019452,2]
[375048136,1753511448871,-460.0,0.00019452,2]
[375048138,1753511448881,-1693.12,0.00019452,2]
[375048140,1753511448891,-460.0,0.00019452,2]
[375048142,1753511448900,-460.0,0.00019452,2]
[375048144,1753511448909,-151.0,0.00019452,2]
[375048146,1753511448919,-151.0,0.00019452,2]
[375048148,1753511448929,-460.0,0.00019452,2]
[375048150,1753511448938,-151.0,0.00019452,2]
[375048152,1753511448948,-460.0,0.00019452,2]
[375048154,1753511448958,-608.9,0.00019452,2]
[375048156,1753511448967,-467.92723857,0.00019452,2]
[375048158,1753511448976,-460.0,0.00019452,2]
[375048160,1753511448986,-463.70304553,0.00019452,2]
[375048162,1753511448995,-151.0,0.00019452,2]
[375048164,1753511449004,-291.85016193,0.00019452,2]
[375048166,1753511449014,-460.0,0.00019452,2]
[375048168,1753511449023,-465.06,0.00019452,2]
[375048170,1753511449033,-151.0,0.00019452,2]
[375048172,1753511449042,-151.0,0.00019452,2]
[375048174,1753511449052,-460.0,0.00019452,2]
[375048176,1753511449062,-460.0,0.00019452,2]
[375048178,1753511449071,-460.0,0.00019452,2]
[375048180,1753511449081,-410.55768849,0.00019452,2]
[375048182,1753511449091,-460.0,0.00019452,2]
[375048184,1753511449101,-500.0,0.00019473,2]
[375048186,1753511449110,-500.78204456,0.00019473,2]
[375048188,1753511449120,-500.0,0.00019473,2]
[375048190,1753511449130,-501.21243488,0.00019473,2]
[375048192,1753511449140,-500.0,0.00019473,2]
[375048194,1753511449149,-500.0,0.00019473,2]
[375048196,1753511449159,-501.13343772,0.00019473,2]
[375048198,1753511449169,-502.01418913,0.00019473,2]
[375048200,1753511449179,-501.99924546,0.00019473,2]
[375048201,1753511449189,-500.0,0.00019473,2]
[375048202,1753511449199,-501.03139262,0.00019473,2]
[375048203,1753511449208,-500.0,0.00019473,2]
[375048204,1753511449218,-840.268642,0.00019473,2]
[375048205,1753511449227,-840.268642,0.00019473,2]
[375048206,1753511449236,-151.0,0.000195,2]
[375048207,1753511449246,-151.0,0.000195,2]
[375048208,1753511449255,-385.0,0.00019502,2]
[375048209,1753511449264,-231.0,0.00019509,2]
[375048210,1753511449274,-385.0,0.00019537,2]
[375048211,1753511449283,-380.708538,0.00019599,2]
[375048212,1753511449293,-151.0,0.000196,2]
[375048213,1753511449303,-151.0,0.000196,2]
[375048214,1753511449312,-181.83141211,0.00019616,2]
[375048215,1753511449322,-385.0,0.00019637,2]
[375048216,1753511449331,-420.0,0.00019639,2]
[375048217,1753511449341,-385.0,0.0001964,2]
[375048218,1753511449350,-150.0,0.00019642,2]
[375048219,1753511449359,-385.0,0.00019644,2]
[375048220,1753511449368,-385.0,0.00019654,2]
[375048221,1753511449377,-151.0,0.000197,2]
[375048222,1753511449386,-151.0,0.000197,2]
[375048223,1753511449395,-720.51504211,0.00019721,2]
[375048224,1753511449404,-505.10273347,0.00019721,2]
[375048225,1753511449413,-1000.0,0.00019721,2]
[375048226,1753511449423,-1000.0,0.00019721,2]
[375048227,1753511449434,-500.0,0.00019721,2]
[375048228,1753511449443,-506.76482346,0.00019721,2]
[375048229,1753511449452,-501.15255493,0.00019721,2]
[375048231,1753511449462,-1000.0,0.00019721,2]
[375048233,1753511449471,-1000.0,0.00019721,2]
[375048235,1753511449481,-504.8359772,0.00019721,2]
[375048237,1753511449490,-676.93292261,0.00019721,2]
[375048239,1753511449501,-1000.0,0.00019721,2]
[375048241,1753511449510,-151.0,0.00019725,2]
[375048243,1753511449521,-151.0,0.00019725,2]
[375048245,1753511449531,-212.704164,0.00019725,2]
[375048247,1753511449540,-338.83659018,0.00019725,2]
[375048249,1753511449549,-495.0,0.00019726,2]
[375048251,1753511449559,-634.0,0.00019726,2]
[375048253,1753511449569,-151.0,0.00019726,2]
[375048255,1753511449578,-460.0,0.00019726,2]
[375048257,1753511449588,-460.0,0.00019726,2]
[375048259,1753511449597,-460.0,0.00019726,2]
[375048261,1753511449606,-572.96,0.00019726,2]
[375048263,1753511449616,-703.1,0.00019726,2]
[375048265,1753511449625,-460.0,0.00019726,2]
[375048267,1753511449635,-460.0,0.00019726,2]
[375048269,1753511449644,-460.0,0.00019726,2]
[375048271,1753511449653,-460.0,0.00019726,2]
[375048273,1753511449662,-460.0,0.00019726,2]
[375048275,1753511449671,-460.0,0.00019726,2]
[375048276,1753511449681,-382.7429656,0.00019726,2]
[375048278,1753511449691,-460.0,0.00019726,2]
[375048281,1753511449700,-460.0,0.00019726,2]
[375048282,1753511449710,-460.0,0.00019726,2]
[375048284,1753511449721,-465.93139793,0.00019726,2]
[375048287,1753511449730,-460.0,0.00019726,2]
[375048288,1753511449739,-460.0,0.00019726,2]
[375048290,1753511449749,-460.0,0.00019726,2]
[375048292,1753511449759,-168.29699378,0.00019726,2]
[375048294,1753511449768,-200.13396422,0.00019726,2]
[375048296,1753511449778,-460.0,0.00019726,2]
[375048299,1753511449789,-460.0,0.00019726,2]
[375048300,1753511449798,-460.0,0.00019726,2]
[375048302,1753511449808,-460.0,0.00019726,2]
[375048305,1753511449818,-257.98413322,0.00019726,2]
[375048306,1753511449828,-500.45288641,0.00019726,2]
[375048308,1753511449837,-460.0,0.00019726,2]
[375048310,1753511449847,-151.0,0.00019726,2]
[375048312,1753511449857,-460.0,0.00019726,2]
[375048314,1753511449867,-460.0,0.00019726,2]
[375048316,1753511449878,-460.0,0.00019726,2]
[375048318,1753511449887,-460.0,0.00019726,2]
[375048320,1753511449897,-460.0,0.00019726,2]
[375048322,1753511449906,-493.79,0.00019726,2]
[375048324,1753511449916,-151.0,0.00019726,2]
[375048327,1753511449926,-151.0,0.00019726,2]
[375048337,1753511450015,-460.0,0.00019726,2]
[375048339,1753511450027,-752.39,0.00019726,2]
[375048341,1753511450037,-514.08,0.00019726,2]
[375048343,1753511450046,-460.0,0.00019726,2]
[375048345,1753511450055,-151.0,0.00019726,2]
[375048347,1753511450065,-151.0,0.00019726,2]
[375048349,1753511450075,-460.0,0.00019726,2]
[375048351,1753511450084,-462.54360865,0.00019726,2]
[375048353,1753511450093,-464.86400042,0.00019726,2]
[375048355,1753511450102,-460.0,0.00019726,2]
[375048357,1753511450111,-840.268642,0.00019726,2]
[375048359,1753511450121,-460.0,0.00019726,2]
[375048361,1753511450130,-460.0,0.00019726,2]
[375048363,1753511450139,-840.268642,0.00019726,2]
[375048365,1753511450149,-460.0,0.00019726,2]
[375048367,1753511450158,-460.0,0.00019726,2]
[375048369,1753511450168,-460.0,0.00019726,2]
[375048371,1753511450178,-460.0,0.00019726,2]
[375048372,1753511450187,-460.0,0.00019726,2]
[375048374,1753511450197,-151.0,0.00019726,2]
[375048376,1753511450208,-151.0,0.00019726,2]
[375048378,1753511450218,-846.44,0.00019726,2]
[375048380,1753511450227,-460.0,0.00019726,2]
[375048382,1753511450236,-463.0374714,0.00019726,2]
[375048384,1753511450245,-460.0,0.00019726,2]
[375048386,1753511450255,-462.06136971,0.00019726,2]
[375048388,1753511450265,-460.0,0.00019726,2]
[375048390,1753511450274,-460.0,0.00019726,2]
[375048392,1753511450283,-764.23,0.00019726,2]
[375048394,1753511450293,-460.0,0.00019726,2]
[375048396,1753511450302,-460.0,0.00019726,2]
[375048398,1753511450312,-921.6,0.00019726,2]
[375048400,1753511450324,-460.0,0.00019726,2]
[375048402,1753511450334,-468.92015285,0.00019726,2]
[375048404,1753511450343,-460.0,0.00019726,2]
[375048406,1753511450353,-151.0,0.00019726,2]
[375048408,1753511450363,-460.0,0.00019726,2]
[375048410,1753511450372,-151.0,0.00019726,2]
[375048412,1753511450382,-463.34284198,0.00019726,2]
[375048414,1753511450392,-460.0,0.00019726,2]
[375048416,1753511450404,-460.0,0.00019726,2]
[375048418,1753511450415,-460.0,0.00019726,2]
[375048420,1753511450426,-249.376456,0.00019726,2]
[375048422,1753511450435,-249.376456,0.00019726,2]
[375048424,1753511450445,-249.376456,0.00019726,2]
[375048426,1753511450454,-249.376456,0.00019726,2]
[375048428,1753511450464,-465.15393098,0.00019726,2]
[375048430,1753511450474,-460.0,0.00019726,2]
[375048432,1753511450484,-381.59560129,0.00019726,2]
[375048434,1753511450493,-460.0,0.00019726,2]
[375048436,1753511450503,-460.0,0.00019726,2]
[375048438,1753511450512,-460.0,0.00019726,2]
[375048440,1753511450522,-280.81239226,0.00019726,2]
[375048442,1753511450536,-460.0,0.00019726,2]
[375048444,1753511450545,-460.0,0.00019726,2]
[375048446,1753511450556,-460.0,0.00019726,2]
[375048448,1753511450566,-460.0,0.00019726,2]
[375048450,1753511450575,-191.239735,0.00019726,2]
[375048452,1753511450585,-1214.9,0.00019726,2]
[375048454,1753511450594,-460.0,0.00019726,2]
[375048456,1753511450604,-460.0,0.00019726,2]
[375048458,1753511450614,-460.0,0.00019726,2]
[375048460,1753511450623,-460.0,0.00019726,2]
[375048462,1753511450633,-460.0,0.00019726,2]
[375048464,1753511450643,-468.28691985,0.00019726,2]
[375048466,1753511450652,-460.0,0.00019726,2]
[375048467,1753511450661,-485.31,0.00019726,2]
[375048469,1753511450671,-212.66719458,0.00019726,2]
[375048472,1753511450682,-460.0,0.00019726,2]
[375048474,1753511450692,-460.0,0.00019726,2]
[375048476,1753511450701,-1122.24,0.00019726,2]
[375048478,1753511450711,-460.0,0.00019726,2]
[375048479,1753511450720,-460.0,0.00019726,2]
[375048481,1753511450729,-477.05944288,0.00019726,2]
[375048483,1753511450739,-460.0,0.00019726,2]
[375048485,1753511450748,-1121.8,0.00019726,2]
[375048488,1753511450758,-460.0,0.00019726,2]
[375048489,1753511450768,-460.0,0.00019726,2]
[375048492,1753511450777,-460.0,0.00019726,2]
[375048493,1753511450786,-603.38585314,0.00019726,2]
[375048495,1753511450796,-460.0,0.00019726,2]
[375048497,1753511450805,-460.0,0.00019726,2]
[375048499,1753511450815,-460.0,0.00019726,2]
[375048501,1753511450824,-460.0,0.00019726,2]
[375048504,1753511450834,-460.0,0.00019726,2]
[375048505,1753511450844,-460.0,0.00019726,2]
[375048507,1753511450853,-460.0,0.00019726,2]
[375048510,1753511450863,-151.0,0.00019726,2]
[375048512,1753511450873,-151.0,0.00019726,2]
[375048514,1753511450882,-460.0,0.00019726,2]
[375048516,1753511450891,-460.0,0.00019726,2]
[375048517,1753511450900,-456.82934517,0.00019726,2]
[375048519,1753511450910,-659.73,0.00019726,2]
[375048521,1753511450923,-460.0,0.00019726,2]
[375048523,1753511450934,-466.07528846,0.00019726,2]
[375048525,1753511450943,-460.0,0.00019726,2]
[375048527,1753511450953,-1000.0,0.00019726,2]
[375048529,1753511450962,-460.0,0.00019726,2]
[375048531,1753511450971,-460.0,0.00019726,2]
[375048533,1753511450981,-460.0,0.00019726,2]
[375048535,1753511450990,-460.0,0.00019726,2]
[375048537,1753511450999,-461.6130995,0.00019726,2]
[375048539,1753511451009,-460.0,0.00019726,2]
[375048541,1753511451018,-460.0,0.00019726,2]
[375048543,1753511451027,-460.0,0.00019726,2]
[375048545,1753511451036,-460.0,0.00019726,2]
[375048547,1753511451046,-460.0,0.00019726,2]
[375048549,1753511451054,-460.0,0.00019726,2]
[375048551,1753511451065,-460.0,0.00019726,2]
[375048553,1753511451074,-464.22947453,0.00019726,2]
[375048555,1753511451084,-465.50436324,0.00019726,2]
[375048557,1753511451093,-460.0,0.00019726,2]
[375048559,1753511451102,-460.0,0.00019726,2]
[375048561,1753511451111,-151.0,0.00019726,2]
[375048563,1753511451121,-151.0,0.00019726,2]
[375048565,1753511451131,-460.0,0.00019726,2]
[375048567,1753511451140,-460.0,0.00019726,2]
[375048569,1753511451149,-460.0,0.00019726,2]
[375048571,1753511451159,-462.84543191,0.00019726,2]
[375048573,1753511451169,-952.14,0.00019726,2]
[375048575,1753511451178,-460.0,0.00019726,2]
[375048577,1753511451188,-460.0,0.00019726,2]
[375048579,1753511451197,-588.74,0.00019726,2]
[375048581,1753511451206,-460.0,0.00019726,2]
[375048583,1753511451216,-460.0,0.00019726,2]
[375048585,1753511451225,-460.0,0.00019726,2]
[375048587,1753511451234,-577.95,0.00019726,2]
[375048589,1753511451243,-177.007815,0.00019726,2]
[375048591,1753511451252,-177.007815,0.00019726,2]
[375048593,1753511451261,-460.0,0.00019726,2]
[375048595,1753511451271,-460.0,0.00019726,2]
[375048597,1753511451280,-177.007815,0.00019726,2]
[375048599,1753511451289,-460.0,0.00019726,2]
[375048601,1753511451298,-177.007815,0.00019726,2]
[375048603,1753511451308,-460.0,0.00019726,2]
[375048605,1753511451317,-466.36169614,0.00019726,2]
[375048607,1753511451326,-2703.47,0.00019726,2]
[375048608,1753511451335,-460.0,0.00019726,2]
[375048610,1753511451345,-460.0,0.00019726,2]
[375048612,1753511451354,-3615.3,0.00019726,2]
[375048614,1753511451363,-500.0,0.00019726,2]
[375048617,1753511451373,-460.0,0.00019726,2]
[375048619,1753511451383,-460.0,0.00019726,2]
[375048621,1753511451392,-460.0,0.00019726,2]
[375048622,1753511451402,-990.15,0.00019726,2]
[375048624,1753511451412,-460.0,0.00019726,2]
[375048626,1753511451422,-460.0,0.00019726,2]
[375048628,1753511451432,-467.56894109,0.00019726,2]
[375048631,1753511451442,-460.0,0.00019726,2]
[375048632,1753511451451,-460.0,0.00019726,2]
[375048634,1753511451460,-460.0,0.00019726,2]
[375048636,1753511451469,-460.0,0.00019726,2]
[375048638,1753511451479,-898.03,0.00019726,2]
[375048640,1753511451487,-468.45644933,0.00019726,2]
[375048642,1753511451497,-2024.16,0.00019726,2]
[375048644,1753511451506,-1304.94,0.00019726,2]
[375048646,1753511451515,-460.0,0.00019726,2]
[375048648,1753511451524,-565.51565083,0.00019726,2]
[375048650,1753511451534,-460.0,0.00019726,2]
[375048652,1753511451543,-1679.2,0.00019726,2]
[375048654,1753511451553,-460.0,0.00019726,2]
[375048656,1753511451562,-460.0,0.00019726,2]
[375048658,1753511451573,-460.0,0.00019726,2]
[375048660,1753511451582,-460.0,0.00019726,2]
[375048662,1753511451591,-1189.34,0.00019726,2]
[375048664,1753511451601,-460.0,0.00019726,2]
[375048666,1753511451610,-460.0,0.00019726,2]
[375048668,1753511451620,-460.0,0.00019726,2]
[375048670,1753511451629,-550.62,0.00019726,2]
[375048672,1753511451638,-1014.76,0.00019726,2]
[375048674,1753511451647,-460.0,0.00019726,2]
[375048676,1753511451656,-460.0,0.00019726,2]
[375048678,1753511451665,-460.0,0.00019726,2]
[375048680,1753511451675,-460.0,0.00019726,2]
[375048682,1753511451684,-460.0,0.00019726,2]
[375048684,1753511451694,-151.0,0.00019726,2]
[375048686,1753511451703,-151.0,0.00019726,2]
[375048688,1753511451712,-460.0,0.00019726,2]
[375048690,1753511451722,-455.0,0.00019726,2]
[375048692,1753511451731,-460.0,0.00019726,2]
[375048694,1753511451740,-151.0,0.00019726,2]
[375048696,1753511451749,-238.869894,0.00019726,2]
[375048698,1753511451759,-460.0,0.00019726,2]
[375048700,1753511451768,-5717.47,0.00019726,2]
[375048702,1753511451776,-610.15,0.00019726,2]
[375048704,1753511451784,-460.0,0.00019726,2]
[375048706,1753511451793,-463.18578063,0.00019726,2]
[375048707,1753511451802,-7840.49,0.00019726,2]
[375048708,1753511451811,-460.0,0.00019726,2]
[375048709,1753511451820,-635.79,0.00019726,2]
[375048710,1753511451829,-460.0,0.00019726,2]
[375048712,1753511451916,-3221.32,0.00019726,2]
[375048714,1753511451924,-513.15,0.00019726,2]
[375048716,1753511451932,-460.0,0.00019726,2]
[375048718,1753511451941,-2684.27,0.00019726,2]
[375048720,1753511451949,-460.0,0.00019726,2]
[375048722,1753511451958,-460.0,0.00019726,2]
[375048724,1753511451965,-460.0,0.00019726,2]
[375048726,1753511451972,-460.0,0.00019726,2]
[375048728,1753511451981,-673.7,0.00019726,2]
[375048730,1753511451988,-164.120954,0.00019726,2]
[375048732,1753511451997,-164.120954,0.00019726,2]
[375048735,1753511452005,-460.0,0.00019726,2]
[375048737,1753511452013,-164.120954,0.00019726,2]
[375048739,1753511452020,-164.120954,0.00019726,2]
[375048741,1753511452027,-902.32,0.00019726,2]
[375048743,1753511452035,-1085.43,0.00019726,2]
[375048744,1753511452042,-460.0,0.00019726,2]
[375048746,1753511452048,-460.0,0.00019726,2]
[375048748,1753511452056,-460.0,0.00019726,2]
[375048750,1753511452064,-460.0,0.00019726,2]
[375048752,1753511452072,-463.6200879,0.00019726,2]
[375048754,1753511452080,-471.14596406,0.00019726,2]
[375048756,1753511452088,-464.88986697,0.00019726,2]
[375048758,1753511452097,-4417.81,0.00019726,2]
[375048760,1753511452104,-460.0,0.00019726,2]
[375048762,1753511452112,-157.383504,0.00019726,2]
[375048764,1753511452119,-460.0,0.00019726,2]
[375048766,1753511452128,-931.56,0.00019726,2]
[375048769,1753511452137,-2107.03,0.00019726,2]
[375048771,1753511452145,-460.0,0.00019726,2]
[375048773,1753511452154,-460.0,0.00019726,2]
[375048775,1753511452161,-460.0,0.00019726,2]
[375048777,1753511452170,-1710.8,0.00019726,2]
[375048779,1753511452178,-460.0,0.00019726,2]
[375048781,1753511452187,-460.0,0.00019726,2]
[375048783,1753511452195,-460.0,0.00019726,2]
[375048786,1753511452204,-1102.93,0.00019726,2]
[375048788,1753511452213,-585.1,0.00019726,2]
[375048790,1753511452221,-460.0,0.00019726,2]
[375048792,1753511452228,-697.82,0.00019726,2]
[375048794,1753511452236,-462.21699562,0.00019726,2]
[375048796,1753511452245,-460.0,0.00019726,2]
[375048798,1753511452255,-842.14,0.00019726,2]
[375048800,1753511452264,-460.0,0.00019726,2]
[375048802,1753511452273,-1185.09,0.00019726,2]
[375048804,1753511452283,-3896.75,0.00019726,2]
[375048806,1753511452292,-460.0,0.00019726,2]
[375048808,1753511452301,-460.0,0.00019726,2]
[375048810,1753511452311,-1163.22,0.00019726,2]
[375048811,1753511452324,-460.0,0.00019726,2]
[375048814,1753511452333,-460.0,0.00019726,2]
[375048816,1753511452343,-474.02627055,0.00019726,2]
[375048818,1753511452352,-2522.98,0.00019726,2]
[375048820,1753511452363,-460.0,0.00019726,2]
[375048822,1753511452373,-3435.02,0.00019726,2]
[375048824,1753511452383,-867.81,0.00019726,2]
[375048826,1753511452392,-527.64,0.00019726,2]
[375048828,1753511452403,-460.0,0.00019726,2]
[375048830,1753511452412,-460.0,0.00019726,2]
[375048832,1753511452421,-11805.46,0.00019726,2]
[375048834,1753511452430,-352.5228111,0.00019726,2]
[375048836,1753511452442,-460.0,0.00019726,2]
[375048838,1753511452451,-3583.05,0.00019726,2]
[375048840,1753511452460,-460.0,0.00019726,2]
[375048842,1753511452470,-167.58975453,0.00019726,2]
[375048844,1753511452479,-460.0,0.00019726,2]
[375048846,1753511452487,-766.82,0.00019726,2]
[375048848,1753511452497,-460.0,0.00019726,2]
[375048850,1753511452505,-151.0,0.00019726,2]
[375048852,1753511452514,-151.0,0.00019726,2]
[375048854,1753511452523,-460.0,0.00019726,2]
[375048856,1753511452532,-1264.18,0.00019726,2]
[375048858,1753511452541,-460.0,0.00019726,2]
[375048860,1753511452549,-162.378101,0.00019726,2]
[375048862,1753511452558,-162.378101,0.00019726,2]
[375048864,1753511452567,-218.3646845,0.00019726,2]
[375048866,1753511452576,-460.0,0.00019726,2]
[375048868,1753511452586,-162.378101,0.00019726,2]
[375048870,1753511452595,-162.378101,0.00019726,2]
[375048872,1753511452604,-1716.22,0.00019726,2]
[375048874,1753511452613,-460.0,0.00019726,2]
[375048876,1753511452622,-1693.12,0.00019726,2]
[375048878,1753511452631,-460.0,0.00019726,2]
[375048880,1753511452640,-460.0,0.00019726,2]
[375048882,1753511452649,-151.0,0.00019726,2]
[375048884,1753511452659,-465.29567133,0.00019726,2]
[375048886,1753511452668,-151.0,0.00019726,2]
[375048888,1753511452677,-608.9,0.00019726,2]
[375048890,1753511452688,-460.0,0.00019726,2]
[375048892,1753511452698,-203.20015898,0.00019726,2]
[375048894,1753511452707,-151.0,0.00019726,2]
[375048896,1753511452716,-465.06,0.00019726,2]
[375048898,1753511452726,-151.0,0.00019726,2]
[375048900,1753511452735,-460.0,0.00019726,2]
[375048902,1753511452744,-217.75760405,0.00019726,2]
[375048904,1753511452754,-460.0,0.00019726,2]
[375048906,1753511452763,-787.0,0.00019735,2]
[375048908,1753511452772,-2446.0,0.00019745,2]
[375048910,1753511452781,-503.90734139,0.00019773,2]
[375048912,1753511452791,-500.0,0.00019773,2]
[375048914,1753511452800,-500.0,0.00019773,2]
[375048916,1753511452809,-500.63707662,0.00019773,2]
[375048918,1753511452819,-500.0,0.00019773,2]
[375048920,1753511452828,-504.76733656,0.00019773,2]
[375048922,1753511452837,-500.0,0.00019773,2]
[375048924,1753511452847,-500.0,0.00019773,2]
[375048926,1753511452856,-158.36715686,0.00019773,2]
[375048928,1753511452866,-500.0,0.00019773,2]
[375048930,1753511452875,-500.0,0.00019773,2]
[375048932,1753511452884,-500.0,0.00019773,2]
[375048934,1753511452894,-500.0,0.00019773,2]
[375048936,1753511452903,-500.0,0.00019773,2]
[375048938,1753511452912,-500.0,0.00019773,2]
[375048940,1753511452921,-500.0,0.00019773,2]
[375048942,1753511452930,-500.0,0.00019773,2]
[375048944,1753511452939,-500.0,0.00019773,2]
[375048946,1753511452949,-500.0,0.00019773,2]
[375048948,1753511452958,-500.0,0.00019773,2]
[375048950,1753511452967,-500.0,0.00019773,2]
[375048952,1753511452976,-500.0,0.00019773,2]
[375048954,1753511452986,-500.0,0.00019773,2]
[375048956,1753511452995,-500.0,0.00019773,2]
[375048958,1753511453003,-500.0,0.00019773,2]
[375048960,1753511453013,-500.0,0.00019773,2]
[375048962,1753511453022,-488.48682736,0.00019773,2]
[375048977,1753511453152,-11.51317264,0.00019773,2]
[375048979,1753511453161,-500.0,0.00019773,2]
[375048981,1753511453170,-500.0,0.00019773,2]
[375048983,1753511453180,-503.05978469,0.00019773,2]
[375048985,1753511453189,-500.0,0.00019773,2]
[375048987,1753511453198,-632.20334121,0.00019773,2]
[375048989,1753511453207,-507.26263923,0.00019773,2]
[375048991,1753511453217,-152.77755015,0.00019773,2]
[375048993,1753511453226,-500.0,0.00019773,2]
[375048995,1753511453235,-564.31951568,0.00019773,2]
[375048998,1753511453247,-89.86948432,0.00019773,2]
[375049000,1753511453257,-178.73502873,0.00019773,2]
[375049002,1753511453266,-151.0,0.00019773,2]
[375049004,1753511453275,-151.0,0.00019773,2]
[375049006,1753511453284,-1523.912044,0.000198,2]
[375049008,1753511453293,-2158.0,0.00019816,2]
[375049009,1753511453303,-539.07293948,0.00019816,2]
[375049015,1753511453348,-429.92706052,0.00019816,2]